Cogmind - Beta 13 @@@ ROGUE MODE // 2024.05.25 @ 22:45:21 Player: CONM Result: Destroyed by S-27 Virus with Autogun Performance ------------- Evolutions (1) 500 Regions Visited (5) 1000 Robots Destroyed (50) 250 Value Destroyed (1104) 1104 Prototype IDs (0) 0 Alien Tech Used (0) 0 Bonus (660) 660 TOTAL SCORE: 3514 Bonus ------- High Alert Combat Kills 60 Met Imprinter 300 Was Imprinted 300 Cogmind --------- Core Integrity 0/400 Matter 274/300 Energy 250/250 System Corruption 1% Temperature Cool (0) Movement Hovering (112) Ox1 Location -6/Proximity Caves Parts ------- > --- POWER (1) -------- Ion Engine > --- PROPULSION (3) --- Airjet Airjet Gravmag System > --- UTILITY (3) ------ Large Storage Unit 0b10 Decoder Chip [Scout] > --- WEAPON (2) ------- CR-A16's Pointy Stick > --- INVENTORY (15) --- Airjet Airjet Airjet Seismic Detector 0b10 Decoder Chip [Generic] 0b10 Decoder Chip [Generic] Target Analyzer Makeshift Cloaking Device Makeshift System Shield Improved Medium Laser Heavy Assault Rifle Makeshift Spear Peak State ------------ > --- POWER ------------ Light Ion Engine > --- PROPULSION ------- Airjet Airjet Airjet > --- UTILITY ---------- Large Storage Unit Weight Redist. System 0b10 Decoder Chip [Scout] > --- WEAPON ----------- Particle Gun CR-A16's Pointy Stick > --- INVENTORY -------- Ion Engine Airjet Airjet Airjet Airjet Airjet Improved Terrain Scanner Improved Terrain Scanner Seismic Detector Makeshift System Shield Improved Medium Laser Heavy Assault Rifle Gauss Cannon Mining Laser Makeshift Spear [Rating: 28] Favorites ----------- Power Ion Engine Engine Ion Engine Propulsion Airjet Treads Advanced Treads Leg Aluminum Leg Hover Unit Airjet Utility Large Storage Unit Device Weight Redist. System Storage Large Storage Unit Processor Targeting Computer Protection Light Armor Plating Weapon Heavy Assault Rifle Energy Gun Particle Gun Ballistic Gun Heavy Assault Rifle Piercing Weapon CR-A16's Pointy Stick Build | -11 -10 -9 -9 -7 -6 ------- Run | Yrd Mat Mat Min Zio Pro Slots Evolved 2 | . . 2 . . . Power . | . . . . . . Propulsion 1 | . . 1 . . . Utility 1 | . . 1 . . . Weapon . | . . . . . . Parts Attached 37 | 7 6 15 1 2 6 Power 4 | 1 1 1 . . 1 Engine 4 | 1 1 1 . . 1 Core . | . . . . . . Reactor . | . . . . . . Propulsion 14 | 2 1 7 . . 4 Treads 6 | 2 1 3 . . . Leg 1 | . . 1 . . . Wheel . | . . . . . . Hover 7 | . . 3 . . 4 Flight . | . . . . . . Utility 9 | 2 2 3 . 1 1 Device 4 | 1 . 2 . . 1 Storage 2 | 1 1 . . . . Processor 2 | . 1 . . 1 . Hackware . | . . . . . . Protection 1 | . . 1 . . . Artifact . | . . . . . . Weapon 10 | 2 2 4 1 1 . Energy Gun 2 | . . 2 . . . Energy Cannon . | . . . . . . Ballistic Gun 7 | 2 2 2 1 . . Ballistic Cannon . | . . . . . . Launcher . | . . . . . . Special Weapon . | . . . . . . Impact Weapon . | . . . . . . Slashing Weapon . | . . . . . . Piercing Weapon 1 | . . . . 1 . Special Melee Weapon . | . . . . . . Unidentified Prototypes . | . . . . . . Parts Lost 12 | . . 6 . . 6 Power 2 | . . 1 . . 1 Propulsion 5 | . . 2 . . 3 Utility 3 | . . 2 . . 1 Weapon 2 | . . 1 . . 1 Highest Loss Streak 6 | . . 4 . . 6 To Critical Strikes . | . . . . . . Average Slot Usage (%) 96 | . 100 95 100 100 79 Engine 11 | . 14 10 11 11 10 Treads 18 | . 28 26 . . . Hover 12 | . . 5 33 33 32 Device 4 | . 1 2 11 11 3 Storage 11 | . 14 11 11 11 11 Processor 11 | . 12 11 11 11 11 Protection 2 | . . 5 . . . Energy Gun 4 | . . 4 11 11 . Ballistic Gun 17 | . 28 16 11 7 . Piercing Weapon 1 | . . . . 3 11 Naked Turns . | . . . . . . Heaviest Build 34 | 15 31 34 29 29 29 Greatest Support 66 | 40 40 66 30 30 30 Greatest Overweight (x) 3 | . . 1 . . 3 Average Overweight (x) . | . . . . . . Largest Inventory Capacity 15 | 8 15 15 15 15 15 Average Capacity 14 | 7 12 15 15 15 15 Most Carried 15 | 2 15 15 11 15 15 Average Carried 11 | 1 9 13 10 13 10 Final Capacity 15 | 8 15 15 15 15 15 Final Carried 15 | 2 13 9 11 15 12 Class Distribution -------------------- 100% | Mutant Dominant Class ---------------- Mutant | -10/Materials Mutant | -9/Materials Mutant | -9/Mines Mutant | -7/Zion Mutant | -6/Proximity Caves Resources | -11 -10 -9 -9 -7 -6 ----------- Run | Yrd Mat Mat Min Zio Pro Matter Collected 1075 | 276 241 481 25 3 49 Remotely . | . . . . . . Salvage Created 1510 | 36 439 963 32 . 40 Parts 109 | 6 31 61 7 . 4 Haulers Intercepted 4 | . 2 2 . . . Recyclers Shooed 1 | . . 1 . . . Parts Field Recycled . | . . . . . . Retrieved Matter . | . . . . . . Parts Self-Destructed 2 | . . . . . 2 Prevented . | . . . . . . Kills | -11 -10 -9 -9 -7 -6 ------- Run | Yrd Mat Mat Min Zio Pro Combat Hostiles Destroyed 40 | . 13 26 . . 1 Melee 1 | . . . . . 1 Guns 39 | . 13 26 . . . Classes Destroyed 8 | 1 3 3 . . 1 Tunneler 4 | 2 . . 2 . . Hauler 4 | . 2 2 . . . Operator 1 | . . 1 . . . Watcher 1 | . . 1 . . . Swarmer 17 | . 7 10 . . . Grunt 20 | . 6 14 . . . Sentry 2 | . . 2 . . . Programmer 1 | . . . . . 1 Best Kill Streak 9 | 2 4 9 2 . 1 Combat Bots Only 9 | . 3 9 . . 1 Max Kills in Single Turn 2 | 1 1 2 1 . 1 Gunslinging 1 | . . 1 . . . Exploded . | . . . . . . Melee 1 | . . . . . 1 Uniques/NPCs Destroyed . | . . . . . . Combat | -11 -10 -9 -9 -7 -6 -------- Run | Yrd Mat Mat Min Zio Pro Hostile Shots Fired 238 | . 54 146 1 . 37 Missed 73 | . 16 44 . . 13 Damage Taken 2170 | . 404 1226 21 . 519 Core 471 | . 61 197 . . 213 Absorbed by Shields . | . . . . . . Regen/Repaired (Parts) 29 | . . . . 29 . Core Remaining (%) 87 | 100 75 . . . . Volleys Fired 111 | 2 33 70 6 . . Largest 2 | 2 2 2 2 . . Hottest 121 | 40 46 121 88 . . Shots Fired 222 | 4 66 140 12 . . Gun 222 | 4 66 140 12 . . Cannon . | . . . . . . Launcher . | . . . . . . Special . | . . . . . . Kinetic 183 | 4 66 107 6 . . Thermal 39 | . . 33 6 . . Explosive . | . . . . . . Electromagnetic . | . . . . . . Robot Hit Streak 22 | 3 7 22 11 . . Robot Miss Streak 3 | . 3 3 2 . . Penetration Max . | . . . . . . Secondary Targets 4 | . 1 3 . . . Max Gunslinging Chain 1 | . 1 1 . . . Shots Hit Robots 150 | 3 37 102 7 . 1 Core Hits 69 | 2 18 46 2 . 1 Critical Kills 1 | 1 . . . . . Critical Parts Destroyed . | . . . . . . Critical Strikes 2 | 1 . 1 . . . Burn 1 | . . 1 . . . Destroy 1 | 1 . . . . . Melee Attacks 3 | . . . . . 3 Impact . | . . . . . . Slashing . | . . . . . . Piercing 3 | . . . . . 3 Sneak Attacks . | . . . . . . Combat Hostiles . | . . . . . . Follow-up Attacks . | . . . . . . Damage Inflicted 2311 | 41 566 1556 115 . 33 Guns 2237 | 41 565 1530 101 . . Cannons . | . . . . . . Explosions . | . . . . . . Melee 33 | . . . . . 33 Ramming 41 | . 1 26 14 . . Kinetic 1876 | 41 565 1196 74 . . Thermal 361 | . . 334 27 . . Explosive . | . . . . . . Electromagnetic . | . . . . . . Impact . | . . . . . . Slashing . | . . . . . . Piercing 33 | . . . . . 33 Highest Corruption 1 | . . . . . 1 Average Corruption 1 | . . . . . 1 Corruption Purged . | . . . . . . Corruption Blocked . | . . . . . . Effects 1 | . . . . . 1 Energy Discharges 1 | . . . . . 1 Overload Shots . | . . . . . . Overflow Damage . | . . . . . . Projectiles . | . . . . . . Explosions . | . . . . . . Melee . | . . . . . . Knockbacks . | . . . . . . Impact . | . . . . . . Kinetic . | . . . . . . Secondary . | . . . . . . Self-Inflicted Damage 14 | . . 7 7 . . Shots . | . . . . . . Rammed 9 | . 1 7 1 . . Targets Rammed 9 | . 1 7 1 . . Kicked . | . . . . . . Crushed . | . . . . . . Highest Temperature 221 | . 9 221 81 . . Average Temperature 40 | . 2 45 33 . . Received Heat Transfer 747 | . 126 564 9 . 48 Siege Activations . | . . . . . . Robots Corrupted . | . . . . . . Combat Hostiles . | . . . . . . Parts Fried . | . . . . . . Impact Corruptions . | . . . . . . Robots Melted . | . . . . . . Combat Hostiles . | . . . . . . Parts Melted 1 | . . 1 . . . Heat Transferred 999 | . . 925 74 . . Parts Sabotaged . | . . . . . . Parts Stolen . | . . . . . . Parts Stripped . | . . . . . . Power Chain Reactions . | . . . . . . Alert | -11 -10 -9 -9 -7 -6 ------- Run | Yrd Mat Mat Min Zio Pro Peak Influence 554 | 10 257 554 280 . . Initial 210 | . 6 108 210 . . Average 228 | 2 86 375 258 . . Maximum Alert Level 2 | . 1 2 1 . . Low Security (%) 45 | 100 87 12 . . . Level 1 34 | . 12 41 100 . . Level 2 20 | . . 46 . . . Level 3 . | . . . . . . Level 4 . | . . . . . . Level 5 . | . . . . . . High Security . | . . . . . . Max Security . | . . . . . . Squads Dispatched 6 | . 3 3 . . . Investigation 2 | . 1 1 . . . Extermination . | . . . . . . Reinforcement 3 | . 2 1 . . . Assault 1 | . . 1 . . . Garrison . | . . . . . . Intercept . | . . . . . . Searches Triggered . | . . . . . . Construction Impeded . | . . . . . . Haulers Reinforced . | . . . . . . Active Scanning Responses . | . . . . . . Cargo Convoy Interrupts . | . . . . . . Stealth | -11 -10 -9 -9 -7 -6 --------- Run | Yrd Mat Mat Min Zio Pro Distress Signals 6 | . 2 4 . . . Communications Jammed . | . . . . . . Distress Signals . | . . . . . . Times Spotted 86 | . 28 50 2 . 6 Peak Tracking Total 9 | . 4 9 3 . 4 Tactical Retreats 7 | . 2 3 1 . 1 Traps | -11 -10 -9 -9 -7 -6 ------- Run | Yrd Mat Mat Min Zio Pro Traps Triggered 2 | . 1 1 . . . Indirectly . | . . . . . . Trap Hack Attempts . | . . . . . . Triggered . | . . . . . . Disarmed . | . . . . . . Reprogrammed . | . . . . . . Reused . | . . . . . . Traps Extracted . | . . . . . . Installed . | . . . . . . Triggered . | . . . . . . Machines | -11 -10 -9 -9 -7 -6 ---------- Run | Yrd Mat Mat Min Zio Pro Machines Disabled 1 | . . 1 . . . Max in Single Turn 1 | . . 1 . . . Machines Repaired . | . . . . . . Machines Dismantled . | . . . . . . Machines Sabotaged . | . . . . . . Overloaded Fab Kills . | . . . . . . Hacking | -11 -10 -9 -9 -7 -6 --------- Run | Yrd Mat Mat Min Zio Pro Machines Accessed 9 | . 6 3 . . . Terminals 7 | . 5 2 . . . Fabricators . | . . . . . . Repair Stations . | . . . . . . Recycling Units 1 | . 1 . . . . Scanalyzers 1 | . . 1 . . . Garrison Access . | . . . . . . Total Hacks 25 | . 18 7 . . . Successful 13 | . 10 3 . . . Failed 12 | . 8 4 . . . Catastrophic 2 | . 2 . . . . Database Lockouts . | . . . . . . Manual 9 | . 7 2 . . . Terminals 15 | . 12 3 . . . Fabricators . | . . . . . . Repair Stations . | . . . . . . Recycling Units 6 | . 6 . . . . Scanalyzers 4 | . . 4 . . . Garrison Access . | . . . . . . Terminal Hacks 6 | . 5 1 . . . Record 1 | . 1 . . . . Branch Access Points 1 | . 1 . . . . Terminal Index 1 | . 1 . . . . Alert Level 1 | . 1 . . . . Locate Traps 2 | . 1 1 . . . Fabricator Hacks . | . . . . . . Repair Station Hacks . | . . . . . . Recycling Unit Hacks 5 | . 5 . . . . Recycle Component 2 | . 2 . . . . Process 1 | . 1 . . . . Report Inventory 1 | . 1 . . . . Retrieve Matter 1 | . 1 . . . . Scanalyzer 2 | . . 2 . . . Insert Component 1 | . . 1 . . . Analyze 1 | . . 1 . . . Garrison Access Hacks . | . . . . . . Unauthorized Hacks . | . . . . . . Terminals . | . . . . . . Fabricators . | . . . . . . Repair Stations . | . . . . . . Recycling Units . | . . . . . . Scanalyzers . | . . . . . . Garrison Access . | . . . . . . Data Cores Recovered 1 | . . 1 . . . Used 1 | . . 1 . . . Hacking Detections 8 | . 5 3 . . . Full Trace Events 2 | . 1 1 . . . Feedback Events . | . . . . . . Feedback Blocked . | . . . . . . Robot Schematics Acquired 2 | . . . . 2 . Robots Built . | . . . . . . Authchips . | . . . . . . Time . | . . . . . . Total Robot Build Rating . | . . . . . . Part Schematics Acquired 16 | . . 1 . 15 . Parts Built . | . . . . . . Authchips . | . . . . . . Time . | . . . . . . Total Part Build Rating . | . . . . . . Parts Repaired . | . . . . . . Time . | . . . . . . Parts Recycled 2 | . 2 . . . . Recycled Matter 71 | . 71 . . . . Retrieved Matter 71 | . 71 . . . . Retrieved Components . | . . . . . . Parts Scanalyzed 1 | . . 1 . . . Part Schematics Acquired 1 | . . 1 . . . Parts Damaged . | . . . . . . Bothacking | -11 -10 -9 -9 -7 -6 ------------ Run | Yrd Mat Mat Min Zio Pro Used RIF Installer . | . . . . . . Robots Hacked . | . . . . . . Non-combat . | . . . . . . Combat . | . . . . . . Robot Hacks Applied . | . . . . . . Relay Couplers Released . | . . . . . . Fabnet Peak Effective % . | . . . . . . Robots Rewired . | . . . . . . Allies Hacked . | . . . . . . Hacks Repelled . | . . . . . . Allies | -11 -10 -9 -9 -7 -6 -------- Run | Yrd Mat Mat Min Zio Pro Total Allies 4 | . . . . 4 . Largest Group 4 | . . . . 4 . Highest-Rated Group 155 | . . . . 155 . Highest-Rated Ally 41 | . . . . 41 . Total Orders . | . . . . . . Ally Attacks . | . . . . . . Total Damage . | . . . . . . Kills . | . . . . . . Allies Corrupted . | . . . . . . Allies Melted . | . . . . . . Intel | -11 -10 -9 -9 -7 -6 ------- Run | Yrd Mat Mat Min Zio Pro Robot Analysis Total . | . . . . . . Derelict Logs Recovered 3 | . . . 2 1 . Drone Launches . | . . . . . . Drone Recoveries . | . . . . . . Exploration | -11 -10 -9 -9 -7 -6 ------------- Run | Yrd Mat Mat Min Zio Pro Turns Passed 3283 | 119 1009 1105 267 544 239 Spaces Moved 3041 | 64 548 740 470 1008 211 Core 1 | 1 . . . . . Treads 1057 | 63 548 446 . . . Legs . | . . . . . . Wheels . | . . . . . . Hover 1983 | . . 294 470 1008 211 Flight . | . . . . . . Fastest Speed 50 | 50 160 52 52 52 52 Average Speed 91 | 158 160 108 52 52 104 Slowest Speed 240 | 160 160 225 52 52 240 Overloaded Moves . | . . . . . . Propulsion Burnouts . | . . . . . . Robots Hopped . | . . . . . . Cave-ins Triggered . | . . . . . . Exploration Rate (%) 59 | 4 89 56 87 85 38 Regions Visited 5 Branch Regions 3 Pre-discovered Areas 3 | . . . 1 2 . Known Exits Taken . | . . . . . . Unknown Exits Taken 5 | 1 1 1 1 1 . Scrap Searched 5 | . . . 1 2 2 Spaces Dug . | . . . . . . Terrain Destroyed . | . . . . . . Melee . | . . . . . . Projectile . | . . . . . . AOE . | . . . . . . Terrain Rammed . | . . . . . . Walls Destroyed . | . . . . . . Machines Disabled . | . . . . . . Actions | -11 -10 -9 -9 -7 -6 --------- Run | Yrd Mat Mat Min Zio Pro Total 3320 | 74 615 899 480 1027 225 Wait 60 | . 8 43 . 9 . Move 3036 | 63 547 739 469 1007 211 Hop . | . . . . . . Pick Up 39 | 2 14 12 3 6 2 Fast Attach 11 | 7 . 3 . 1 . Attach 15 | . 1 8 1 . 5 Detach 2 | . 1 . . . 1 Swap 11 | . 5 4 . 1 1 Drop 23 | . 5 13 . 3 2 Fire 111 | 2 33 70 6 . . Melee 3 | . . . . . 3 Ram 2 | . . 1 1 . . Kick . | . . . . . . Crush 7 | . 1 6 . . . Escape Stasis . | . . . . . . Rewire . | . . . . . . Trap . | . . . . . . Miscellaneous . | . . . . . . Route ------- -11/Scrapyard -10/Materials (discovered 4 exits: *Mat x2 / *Min x2) -9/Materials (discovered 2 exits: [*Mat] / [*Min]) -9/Mines -7/Zion -6/Proximity Caves History --------- Turn | Location | Event 19 | -11/Scrapyard | Discovered new exit (range 16) 120 | -11/Scrapyard | Entered Materials 321 | -10/Materials | Build established: Mutant 443 | -10/Materials | Discovered new exit (range 3) 550 | -10/Materials | Discovered new exit (range 16) 928 | -10/Materials | Discovered new exit (range 13) 1104 | -10/Materials | Identified exit to Mines 1129 | -10/Materials | Entered another Materials area 1129 | -9/Materials | Evolved 2 slots: Propulsion x1, Utility x1 1318 | -9/Materials | Destroyed 9 combat bots 1908 | -9/Materials | Discovered new exit (range 16) 1929 | -9/Materials | First assault squad dispatched 2062 | -9/Materials | Lost 4 parts (1p2n1u) 2194 | -9/Materials | Discovered new exit (range 7) 2234 | -9/Materials | Entered Mines 2304 | -9/Mines | Learned location of Zion (-7) 2331 | -9/Mines | Learned Materials stockpile data 2499 | -9/Mines | A Derelict revealed a hidden shortcut to a safe place 2501 | -9/Mines | Entered Zion 2579 | -7/Zion | Learned location of Extension (-6) 2586 | -7/Zion | Given A8's code to call for help 2586 | -7/Zion | Learned location of Quarantine (-2) 2874 | -7/Zion | Found CR-A16's Pointy Stick 2913 | -7/Zion | Imprinted 2915 | -7/Zion | Declared Zion's savior 3041 | -7/Zion | Discovered new exit (range 8) 3045 | -7/Zion | Entered Proximity Caves 3058 | -6/Proximity Caves | Spotted B-75 Beast 3067 | -6/Proximity Caves | Core integrity fell below 50% 3106 | -6/Proximity Caves | Lost 6 parts (1p3n1u1w) 3214 | -6/Proximity Caves | Core integrity fell below 20% 3284 | -6/Proximity Caves | Destroyed by S-27 Virus with Autogun Last Messages --------------- 03049_ Dropped Gauss Cannon. 03050_ Dropped Mining Laser. 03050_ Acquired Mak. Cloaking Device. 03063_ Airjet destroyed. 03066_ Weight Redist. System destroyed. 03069_ Particle Gun destroyed. 03069_ Knocked back. 03072_ Lgt. Ion Engine destroyed. 03075_ Airjet destroyed. 03107_ Searching scrap... 03107_ Found Plasma Cannon. 03107_ Found Imp. Field Recycling Unit. 03107_ Found Mak. Transmission Jammer. 03107_ Found 29 Matter. 03108_ Acquired 29 matter. 03217_ P-60 Hacker destroyed. 03218_ System corrupted: Energy discharge (-72). 03223_ Remote Datajack fries itself beyond repair. 03224_ Acquired Target Analyzer. 03235_ Imp. Heat Sink fries itself beyond repair. Map ----- +----------------------------------------------------+ | | | | | | | | | ?????????????????????????????????????????????????? | | ?????????????????????????????????????????????????? | | ?????????????????????????????????????????????????? | | ?????????????????????????????????????????????????? | | ?????????????????????????????????????????????????? | | ?????????????????????????????????????????????????? | | ?????????????????????????????????????????????????? | | ?????????????????????????????????????????????????? | | ?????????????????????????????????????????????????? | | ?????????????????????????????????????????????????? | | ?????????????????????????????????????????????????? | | ?????????????????????????????????????????????????? | | ?????????????????????????????????????????????????? | | ?????????????????????????????????????????????????? | | ????????????????????????####?????????????????????? | | ???????????????????###### ###???????????????????? | | ???????????????????# ###?????????????????? | | ???????????????????? #?????????????????? | | ????????????????????? #????#?????????????? | | ??????????????###????? #??? ## ?????????? | | ?????????????## #??????# ### s #?????????? | | ?????????????# ####????#@ s #?????????? | | ?????????????# ##??## s s ????????? | | ?????????????# ##?# ## # ####???????????? | | ?????????????# #### #????????????????????? | | ????????????## ### #????????????????????? | | ????????????# ### ## #?????????????????? | | ???????????## ##?# #?????????????????? | | ???????????# ##?# ### #?????????????????? | | ???????????# ##?## #?? #?????????????????? | | ???????????# ##?## #?? #?????????????????? | | ???????????# ##### ##?? #????????????????? | | ???????????# #####?? ## #???????????????? | | ???????????# ##### ### #???????????????? | | ???????????## #?###???????????????? | | ????????????## #?????????????????????? | | ??????????#### #?????????????????????? | | ??????????# ##?????????????????????? | | ??????????# #######??????????????????????? | | ??????????## #?###????????????????????????? | | ???????????#### ## #????????????????????????? | | ??????????????### #????????????????????????? | | ????????????????### #????????????????????????? | | ?????????????????## ###????????????????????????? | | ?????????????##### #??????????????????????????? | | ????????????## ##?????????????????????????? | +----------------------------------------------------+ Best States ------------- Heat Dissipation 38 Energy Generation 10 Energy Capacity 250 Matter Stores 300 Matter Capacity 300 Sight Range 16 Terrain Scan Density 10 Additional Mass Support 6 Armor Coverage 150 Evasion (%) 54 Targeting Accuracy 5 Recoil Reduction 3 Item Schematics ----------------- Airjet | -9/Materials | Scanalyzed Power Maul | -7/Zion | Archive Thermic Laser | -7/Zion | Archive Ripper | -7/Zion | Archive Imp. Particle Charger | -7/Zion | Archive Imp. Titanium Leg | -7/Zion | Archive Hvy. Flak Cannon | -7/Zion | Archive Hvy. Missile Launcher | -7/Zion | Archive Neutrino Core | -7/Zion | Archive Imp. Plasma Cutter | -7/Zion | Archive Force Booster | -7/Zion | Archive Fusion Compressor | -7/Zion | Archive Mak. Transmission Jammer | -7/Zion | Archive Arm. Huge Wheel | -7/Zion | Archive Energy Filter | -7/Zion | Archive Imp. System Restoration Module | -7/Zion | Archive Robot Schematics ------------------ S-27 Virus | -7/Zion | Archive T-07 Excavator | -7/Zion | Archive Fabricated ------------ Nothing Alien Tech Used ----------------- None Achievements -------------- Dynamic Key Challenges ------------ None Game ------ Seed PoweredThrusterDiverter Manual? 0 Play Time 00:48:08 Cumulative 20.5 hours Start 2024.05.24 @ 17:07:45 End 2024.05.25 @ 22:45:21 Sessions 3 Manual Loads 0 Difficulty Rogue Special Mode None Game No. 43 Rogue 43 Adventurer 0 Explorer 0 Win Type - Total 0 Types 0/0/0/0/0/0/0/0/0 Lore% 18 Gallery% 16 Achievement% 21 Wizard Run 0 Options --------- Layout 0 ASCII 0 Keyboard 0 Movement Arrows Keybinds 0 Fullscreen 2 Font 18/Terminus Map View 76x50 Zoom Use 0% Tactical HUD 1 Map Filters NONE Filters NONE Steam 1 RUN: fc0369a9-b208-4004-abe5-fb46061fc68e